Workbook

Sheet Список классных рукодителей (2
A1: класс | B1: Ф.И.О. | C1: кол-во на 01.01.2019 | D1: Кабинет | E1: Кол-во на 09.11.2020 | F1: Кол-во на 22.03.2021 | G1: кол-во на 01.09.21 | H1: Кол-во на 01.09 2022г. По спискам в журналае | I1: Для бухгалтерии | J1: средняя наполняемость
A2: 1А | B2: Николаева Надежда Николаевна | H2: 39 | I2: 39 | J2: =H9/A9 -> 29.43
A3: 1Б | B3: Халитова Ляйсан Фаниловна | H3: 32 | I3: 32
A4: 1В | B4: Сайфуллина Лейсан Ильдаровна | H4: 30 | I4: 30
A5: 1Г | B5: Аскарова Гульнар Фаритовна | H5: 25 | I5: 25
A6: 1Д | B6: Кадырова Сирена Рустамовна | H6: 28 | I6: 28
A7: 1Е | B7: Гиматдинова Алсу Рафасовна | H7: 24 | I7: 24
A8: 1З | B8: Алешина Ольга Юрьевна | H8: 28 | I8: 28
A9: 7 | H9: =SUM(H2:H8) -> 206 | I9: =SUM(I2:I8) -> 206
A10: 2А | B10: Осипова Алена Владимировна | C10: 33 | D10: 211 | E10: 33 | F10: 33 | H10: 35 | I10: 35 | J10: =H18/A18 -> 31.75
A11: 2Б | B11: Буткина Ирина Юрьевна | C11: 32 | D11: 306 | E11: 32 | F11: 32 | H11: 35 | I11: 32
A12: 2В | B12: Фазлыева Эндже Тахировна | C12: 31 | D12: 209 | E12: 31 | F12: 30 | H12: 37 | I12: 37
A13: 2Г | B13: Золотова Тамара Михайловна | C13: 32 | D13: 215 | E13: 32 | F13: 32 | H13: 32 | I13: 32
A14: 2Д | B14: Куртымова Людмила Валентиновна | C14: 33 | D14: 404 | E14: 33 | F14: 33 | H14: 33 | I14: 33
A15: 2Е | B15: Галиева Айгуль Рихатовна | C15: 27 | D15: 303 | E15: 27 | F15: 27 | H15: 30 | I15: 30
A16: 2З | B16: Баймурзина Мария Владимировна | C16: 22 | D16: 210 | E16: 22 | F16: 23 | H16: 30 | I16: 30
A17: 2 И | B17: Гарипов Радис Нурутдинович | H17: 22 | I17: 25
A18: 8 | H18: =SUM(H10:H17) -> 254 | I18: =SUM(I10:I17) -> 254
A19: 3А | B19: Никитина Елена Витальевна | C19: 36 | D19: 408 | E19: 37 | F19: 37 | H19: 29 | I19: 28 | J19: =H26/A26 -> 28.86
A20: 3Б | B20: Абдуллина Гульназ Фирдинатовна | C20: 33 | D20: 301 | E20: 32 | F20: 32 | H20: 32 | I20: 32
A21: 3В | B21: Герасимова Елена Ивановна | C21: 37 | D21: 205 | E21: 36 | F21: 36 | H21: 30 | I21: 30
A22: 3Г | B22: Сучкова Людмила Владимировна | C22: 38 | D22: 107 | E22: 37 | F22: 38 | H22: 35 | I22: 35
A23: 3Д | B23: Зарипова Оксана Владимировна | C23: 33 | D23: 108 | E23: 32 | F23: 32 | H23: 32 | I23: 32
A24: 3Е | B24: Елгушова Валентина Яковлевна | C24: 26 | D24: 402 | E24: 27 | F24: 25 | H24: 24 | I24: 25
A25: 3З | B25: Якымива Алла Александровна | C25: 22 | D25: 216 | E25: 21 | F25: 21 | H25: 20 | I25: 20
A26: 7 | H26: =SUM(H19:H25) -> 202 | I26: =SUM(I19:I25) -> 202
A27: 4а | B27: Охотникова Светлана Николаевна | C27: 40 | D27: 212 | E27: 40 | F27: 40 | H27: 36 | I27: 36 | J27: =H34/A34 -> 30.00
A28: 4б | B28: Зиннатуллина Миляуша Маратовна | C28: 34 | D28: 305 | E28: 34 | F28: 34 | H28: 30 | I28: 30
A29: 4в | B29: Ильина Светлана Александровна | C29: 33 | D29: 407 | E29: 32 | F29: 32 | H29: 38 | I29: 38
A30: 4г | B30: Дмитричева Диана Генадиевна | C30: 29 | D30: 405 | E30: 30 | F30: 30 | H30: 37 | I30: 37
A31: 4д | B31: Шайхлисламова Эндже Рахимзяновна | C31: 31 | D31: 403 | E31: 31 | F31: 32 | H31: 30 | I31: 30
A32: 4 Е | B32: Мамадалеева Галия Ряхимжановна | H32: 24 | I32: 24
A33: 4 З | B33: Имаева Римма Рауфовна | H33: 15 | I33: 15
A34: 7 | H34: =SUM(H27:H33) -> 210 | I34: =SUM(I27:I33) -> 210
A35: =A34+A26+A18+A9 -> 29 | H35: =H34+H26+H18+H9 -> 872 | I35: =I34+I26+I18+I9 -> 872 | J35: =H35/A35 -> 30.07
A36: класс | B36: Ф.И.О. | C36: кол-во на 01.01.2019 | D36: Кабинет | E36: Кол-во на 09.11.2020 | F36: Кол-во на 22.03.2021 | G36: кол-во на 01.09.21 | H36: Кол-во на 01.09 2022г. | I36: Для бухгалтерии | J36: средняя наполняемость
A37: 5а | B37: Суреева Алла Николаевна | C37: 37 | D37: 106 | E37: 36 | F37: 36 | H37: 36 | I37: 31 | J37: =H43/A43 -> 27.50
A38: 5б | B38: Шарафиева Рузиля Рамилевна | C38: 30 | D38: 307 | E38: 30 | F38: 29 | H38: 32 | I38: 32
A39: 5в | B39: Шаповалова Виктория Игоревна | C39: 38 | D39: 203 | E39: 38 | F39: 38 | H39: 30 | I39: 30
A40: 5г | B40: Зяблова Александра Алексеевна | C40: 30 | D40: 308 | E40: 30 | F40: 29 | H40: 28 | I40: 28
A41: 5д | B41: Мукминова Альфия Дамировна | C41: 26 | D41: 401 | E41: 26 | F41: 26 | H41: 28 | I41: 28
A42: 5к | B42: Гирфанутдинова Наталья Михайловна | H42: 11 | I42: 16
A43: 6 | H43: =SUM(H37:H42) -> 165 | I43: =SUM(I37:I42) -> 165
A44: 6а | B44: Юсупова Алсу Юнусовна | C44: 36 | D44: 313 | E44: 36 | F44: 35 | H44: 34 | I44: 34 | J44: =H51/A51 -> 27.43
A45: 6б | B45: Геловани Гюзель Фандусовна | C45: 34 | D45: 113 | E45: 33 | F45: 33 | H45: 26 | I45: 26
A46: 6в | B46: Айзатуллова Эльфия Мунировна | C46: 34 | D46: 221 | E46: 34 | F46: 34 | H46: 37 | I46: 33
A47: 6г | B47: Исмагилова Эльмира Маратовна | C47: 35 | D47: 312 | E47: 35 | F47: 34 | H47: 26 | I47: 26
A48: 6д | B48: Гайфуллина Эльвира Рашатовна | C48: 31 | D48: 202 | E48: 32 | F48: 32 | H48: 21 | I48: 25
A49: 6 Е | B49: Соколова Татьяна Александровна | H49: 20 | I49: 20
A50: 6 С | B50: Крылова Марина Петровна | H50: 28 | I50: 28
A51: 7 | H51: =SUM(H44:H50) -> 192 | I51: =SUM(I44:I50) -> 192
A52: 7а | B52: Хамидова Альфия Альфатовна | C52: 33 | D52: 204 | E52: 33 | F52: 33 | H52: 31 | I52: 31 | J52: =H57/A57 -> 31.80
A53: 7б | B53: Билалова Гульнара Исламхановна | C53: 25 | D53: 112 | E53: 25 | F53: 26 | H53: 30 | I53: 30
A54: 7в | B54: Волкова Елена Анатольевна | C54: 27 | D54: 411 | E54: 28 | F54: 27 | H54: 33 | I54: 33
A55: 7г | B55: Халимбаева Алина Габдулхабировна | C55: 28 | D55: 218 | E55: 28 | F55: 28 | H55: 35 | I55: 35
A56: 7д | B56: Суслова Елена Александровна | C56: 20 | D56: 120 | E56: 20 | F56: 19 | H56: 30 | I56: 30
A57: 5 | H57: =SUM(H52:H56) -> 159 | I57: =SUM(I52:I56) -> 159
A58: 8а | B58: Салюкова Юлия Ренадовна | C58: 28 | D58: 214 | E58: 27 | F58: 29 | H58: 30 | I58: 30 | J58: =H64/A64 -> 25.50
A59: 8б | B59: Хасанова Айгуль Минибаевна | C59: 36 | D59: 220 | E59: 36 | F59: 35 | H59: 25 | I59: 25
A60: 8в | B60: Григорьева Наталья Евгеньевна | C60: 26 | D60: 205 | E60: 24 | F60: 27 | H60: 31 | I60: 31
A61: 8г | B61: Старцева Надежда Вячеславовна | C61: 24 | D61: 114 | E61: 24 | F61: 23 | H61: 26 | I61: 26
A62: 8д | B62: Усманова Лейсан Равильевна | C62: 23 | D62: 316 | E62: 23 | F62: 21 | H62: 22 | I62: 22
A63: 8 Е | B63: Алексеева Елена Владимировна | H63: 19 | I63: 19
A64: 6 | H64: =SUM(H58:H63) -> 153 | I64: =SUM(I58:I63) -> 153
A65: 9а | B65: Хусаинова Альфия Язгаровна | C65: 31 | D65: 407 | E65: 31 | F65: 31 | H65: 30 | I65: 30 | J65: =H70/A70 -> 26.80
A66: 9б | B66: Журавлева Ольга Георгиевна | C66: 32 | D66: 404 | E66: 32 | F66: 30 | H66: 37 | I66: 35
A67: 9в | B67: Шарафиева Гузель Мансуровна | C67: 25 | D67: 306 | E67: 26 | F67: 26 | H67: 26 | I67: 26
A68: 9г | B68: Самаркина Марина Владимировна | C68: 27 | D68: 309 | E68: 26 | F68: 25 | H68: 18 | I68: 18
A69: 9д | B69: Шаймарданова Ольга Александровна | C69: 16 | D69: 403 | E69: 16 | F69: 15 | H69: 23 | I69: 25
A70: 5 | H70: =SUM(H65:H69) -> 134 | I70: =SUM(I65:I69) -> 134
A71: =A70+A64+A57+A51+A43 -> 29 | H71: =H70+H64+H57+H51+H43 -> 803 | I71: =I70+I64+I57+I51+I43 -> 803 | J71: =H71/A71 -> 27.69
A72: 10 А | B72: Биктагирова Руфия Фаязовна | H72: 20 | I72: 20 | J72: =H75/A75 -> 20.67
A73: 10 Б | B73: Ваганова Альбина Ильсуровна | H73: 20 | I73: 20
A74: 10 В | B74: Каримуллина Айзира Фанисовна | H74: 22 | I74: 22
A75: 3 | H75: =SUM(H72:H74) -> 62 | I75: =SUM(I72:I74) -> 62
A76: 11а | B76: Гирфанутдинова Наталья Михайловна | C76: 21 | D76: 222 | E76: 20 | F76: 21 | H76: 22 | I76: 25 | J76: =H79/A79 -> 21.33
A77: 11б | B77: Яковлева Надежда Петровна | C77: 28 | D77: 219 | E77: 28 | F77: 28 | H77: 18 | I77: 14
A78: 11в | B78: Полинчук Анастасия Викторовна | C78: 20 | D78: 408 | E78: 20 | F78: 21 | H78: 24 | I78: 25
A79: 3 | H79: =SUM(H76:H78) -> 64 | I79: =SUM(I76:I78) -> 64
A80: =A75+A79 -> 6 | H80: =H75+H79 -> 126 | I80: =I75+I79 -> 126 | J80: =H80/A80 -> 21.00
A81: =A71+A80 -> 35 | H81: =H71+H80 -> 929 | I81: =I71+I80 -> 929 | J81: =H81/A81 -> 26.54
A82: =A35+A71+A80 -> 64 | H82: =H35+H71+H80 -> 1801 | I82: =I35+I71+I80 -> 1801 | J82: =H82/A82 -> 28.14

Sheet 2023
B2: № | C2: Ф.И.О. классного руководителя | D2: класс | E2: Кол-во обучающихся
B3: 1 | C3: Мутова Светлана Анатольевна | D3: 1А | E3: 37
B4: 2 | C4: Шайхлисламова Эндже Рахимзяновна | D4: 1Б | E4: 34
B5: 3 | C5: Ильина Светлана Александровна | D5: 1В | E5: 38
B6: 4 | C6: Охотникова Светлана Николаевна | D6: 1Г | E6: 38
B7: 5 | C7: Хатмуллина Дильбар Шамиловна | D7: 1Д | E7: 25
B8: 6 | C8: Галактионова Анна Александровна | D8: 1Е | E8: 34
B9: 7 | C9: Зиннатуллина Миляуша Маратовна | D9: 1З | E9: 34
B10: 8 | C10: Имаева Римма Рауфовна | D10: 1И | E10: 35
B11: ИТОГО | D11: 8 | E11: =SUM(E3:E10) -> 275
B12: 1 | C12: Николаева Надежда Николаевна | D12: 2А | E12: 39
B13: 2 | C13: Халитова Ляйсан Фаниловна | D13: 2Б | E13: 30
B14: 3 | C14: Сайфуллина Лейсан Ильдаровна | D14: 2В | E14: 29
B15: 4 | C15: Аскарова Гульнар Фаритовна | D15: 2Г | E15: 28
B16: 5 | C16: Кадырова Сирена Рустамовна | D16: 2Д | E16: 28
B17: 6 | C17: Андрякова Диана Алексеевна | D17: 2Е | E17: 24
B18: 7 | C18: Алешина Ольга Юрьевна | D18: 2З | E18: 26
B19: ИТОГО | D19: 7 | E19: =SUM(E12:E18) -> 204
B20: 1 | C20: Осипова Алена Владимировна | D20: 3А | E20: 36
B21: 2 | C21: Буткина Ирина Юрьевна | D21: 3Б | E21: 34
B22: 3 | C22: Фазлыева Эндже Тахировна | D22: 3В | E22: 37
B23: 4 | C23: Золотова Тамара Михайловна | D23: 3Г | E23: 33
B24: 5 | C24: Куртымова Людмила Валентиновна | D24: 3Д | E24: 32
B25: 6 | C25: Галиева Айгуль Рихатовна | D25: 3Е | E25: 29
B26: 7 | C26: Баймурзина Мария Владимировна | D26: 3З | E26: 31
B27: 8 | C27: Гарипов Радис Нурутдинович | D27: 3 И | E27: 27
B28: ИТОГО | D28: 8 | E28: =SUM(E20:E27) -> 259
B29: 1 | C29: Никитина Елена Витальевна | D29: 4а | E29: 29
B30: 2 | C30: Абдуллина Гульназ Фирдинатовна | D30: 4б | E30: 32
B31: 3 | C31: Герасимова Елена Ивановна | D31: 4в | E31: 32
B32: 4 | C32: Сучкова Людмила Владимировна | D32: 4г | E32: 34
B33: 5 | C33: Зарипова Оксана Владимировна | D33: 4д | E33: 31
B34: 6 | C34: Елгушова Валентина Яковлевна | D34: 4 Е | E34: 23
B35: 7 | C35: Закирова Гулина Фаритовна | D35: 4 З | E35: 22
B36: ИТОГО | D36: 7 | E36: =SUM(E29:E35) -> 203
C37: ИТОГО по начальной школе | D37: =D11+D19+D28+D36 -> 30 | E37: =E11+E19+E28+E36 -> 941
B38: 1 | C38: Журавлева Ольга Георгиевна | D38: 5а | E38: 40
B39: 2 | C39: Полинчук Анастасия Викторовна | D39: 5б | E39: 31
B40: 3 | C40: Гирфанутдинова Наталья Михайловна | D40: 5в | E40: 30
B41: 4 | C41: Шаймарданова Ольга Александровна | D41: 5г | E41: 35
B42: 5 | C42: Мухаметшина Чулпан Фаатовна | D42: 5д | E42: 29
B43: 6 | C43: Самаркина Марина Владимировна | D43: 5е | E43: 28
B44: ИТОГО | D44: 6 | E44: =SUM(E38:E43) -> 193
B45: 1 | C45: Суреева Алла Николаевна | D45: 6а | E45: 33
B46: 2 | C46: Шарафиева Рузиля Рамилевна | D46: 6б | E46: 32
B47: 3 | C47: Шаповалова Виктория Игоревна | D47: 6в | E47: 29
B48: 4 | C48: Зяблова Александра Алексеевна | D48: 6г | E48: 28
B49: 5 | C49: Мукминова Альфия Дамировна | D49: 6д | E49: 28
B50: 6 | C50: Гирфанутдинова Наталья Михайловна | D50: 6 к | E50: 17
B51: ИТОГО | D51: 6 | E51: =SUM(E45:E50) -> 167
B52: 1 | C52: Брусова Людмила Васильевна | D52: 7а | E52: 34
B53: 2 | C53: Геловани Гюзель Фандусовна | D53: 7б | E53: 25
B54: 3 | C54: Айзатуллова Эльфия Мунировна | D54: 7в | E54: 38
B55: 4 | C55: Исмагилова Эльмира Маратовна | D55: 7г | E55: 24
B56: 5 | C56: Гайфуллина Эльвира Рашатовна | D56: 7д | E56: 21
B57: 6 | C57: Соколова Татьяна Александровна | D57: 7е | E57: 23
B58: 7 | C58: Крылова Марина Петровна | D58: 7 с | E58: 27
B59: ИТОГО | D59: 7 | E59: =SUM(E52:E58) -> 192
B60: 1 | C60: Болгарский Константин Георгиевич | D60: 8а | E60: 31
B61: 2 | C61: Билалова Гульнара Исламхановна | D61: 8б | E61: 30
B62: 3 | C62: Волкова Елена Анатольевна | D62: 8в | E62: 32
B63: 4 | C63: Халимбаева Алина Габдулхабировна | D63: 8г | E63: 33
B64: 5 | C64: Суслова Елена Александровна | D64: 8д | E64: 31
B65: ИТОГО | D65: 5 | E65: =SUM(E60:E64) -> 157
B66: 1 | C66: Салюкова Юлия Ренадовна | D66: 9а | E66: 30
B67: 2 | C67: Хасанова Айгуль Минибаевна | D67: 9б | E67: 25
B68: 3 | C68: Григорьева Наталья Евгеньевна | D68: 9в | E68: 31
B69: 4 | C69: Старцева Надежда Вячеславовна | D69: 9г | E69: 26
B70: 5 | C70: Усманова Лейсан Равильевна | D70: 9д | E70: 25
B71: 6 | C71: Алексеева Елена Владимировна | D71: 9е | E71: 20
B72: ИТОГО | D72: 6 | E72: =SUM(E66:E71) -> 157
B73: ИТОГО по основной школе | D73: =D44+D51+D59+D65+D72 -> 30 | E73: =E44+E51+E59+E65+E72 -> 866
B74: 1 | C74: Журавлева Ольга Георгиевна | D74: 10 А | E74: 28
B75: 2 | C75: Хусаинова Альфия Язгаровна | D75: 10 В | E75: 26
B76: ИТОГО | D76: 2 | E76: =SUM(E74:E75) -> 54
B77: 1 | C77: Биктагирова Руфия Фаязовна | D77: 11а | E77: 21
B78: 2 | C78: Ваганова Альбина Ильсуровна | D78: 11б | E78: 17
B79: 3 | C79: Каримуллина Айзира Фанисовна | D79: 11в | E79: 18
B80: ИТОГО | D80: 3 | E80: =SUM(E77:E79) -> 56
B81: ИТОГО по старшей школе | D81: 5 | E81: =E76+E80 -> 110
B82: ИТОГО в основном здании 5-11 кл. | D82: =D73+D81 -> 35 | E82: =E73+E81 -> 976
B83: ИТОГО ПО ГИМНАЗИИ | D83: =D37+D82 -> 65 | E83: =E37+E82 -> 1917
